fUSD/lending_fUSD_20260401
["ID","MTS","AMOUNT","RATE_DAILY","PERIOD"]
[419175827,1775004650070,-500.0,0.00030287,5]
[419175828,1775004650079,-187.78006525,0.00030287,5]
[419175829,1775004650088,-500.0,0.00030287,5]
[419175830,1775004650097,-8565.75555911,0.00030287,5]
[419175831,1775004650106,-393.55924075,0.00030287,5]
[419175832,1775004650116,-194.72792766,0.00030287,5]
[419175833,1775004650125,-500.0,0.00030287,5]
[419175834,1775004650134,-500.0,0.00030287,5]
[419175835,1775004650144,-4886.17563236,0.00030287,5]
[419175836,1775004650152,-500.0,0.00030287,5]
[419175837,1775004650161,-274.66721537,0.00030287,5]
[419175838,1775004650171,-500.0,0.00030287,5]
[419175839,1775004650180,-500.0,0.00030287,5]
[419175840,1775004650189,-151.0,0.00030287,5]
[419175841,1775004650198,-500.0,0.00030287,5]
[419175842,1775004650208,-151.0,0.00030287,5]
[419175843,1775004650218,-500.0,0.00030287,5]
[419175844,1775004650227,-500.0,0.00030287,5]
[419175845,1775004650236,-500.0,0.00030287,5]
[419175846,1775004650245,-151.0,0.00030287,5]
[419175847,1775004650254,-500.0,0.00030287,5]
[419175848,1775004650264,-500.0,0.00030287,5]
[419175849,1775004650273,-500.0,0.00030287,5]
[419175850,1775004650283,-151.0,0.00030287,5]
[419175851,1775004650292,-500.0,0.00030287,5]
[419175852,1775004650301,-500.0,0.00030287,5]
[419175853,1775004650310,-500.0,0.00030287,5]
[419175854,1775004650319,-151.0,0.00030287,5]
[419175855,1775004650328,-500.0,0.00030287,5]
[419175856,1775004650337,-500.0,0.00030287,5]
[419175857,1775004650346,-500.0,0.00030287,5]
[419175858,1775004650356,-292.30151101,0.00030287,5]
[419175859,1775004650365,-500.0,0.00030287,5]
[419175860,1775004650374,-500.0,0.00030287,5]
[419175861,1775004650383,-500.0,0.00030287,5]
[419175862,1775004650393,-500.0,0.00030287,5]
[419175863,1775004650402,-500.0,0.00030287,5]
[419175864,1775004650411,-500.0,0.00030287,5]
[419175865,1775004650420,-500.0,0.00030287,5]
[419175866,1775004650429,-500.0,0.00030287,5]
[419175867,1775004650442,-500.0,0.00030287,5]
[419175868,1775004650451,-500.0,0.00030287,5]
[419175869,1775004650460,-500.0,0.00030287,5]
[419175870,1775004650469,-500.0,0.00030287,5]
[419175871,1775004650478,-500.0,0.00030287,5]
[419175872,1775004650487,-500.0,0.00030287,5]
[419175873,1775004650496,-500.0,0.00030287,5]
[419175874,1775004650506,-500.0,0.00030287,5]
[419175875,1775004650514,-500.0,0.00030287,5]
[419175876,1775004650523,-500.0,0.00030287,5]
[419175877,1775004650533,-500.0,0.00030287,5]
[419175878,1775004650542,-500.0,0.00030287,5]
[419175879,1775004650551,-500.0,0.00030287,5]
[419175880,1775004650563,-500.0,0.00030287,5]
[419175881,1775004650572,-200.0,0.00030287,5]
[419175882,1775004650581,-500.0,0.00030287,5]
[419175883,1775004650590,-500.0,0.00030287,5]
[419175884,1775004650600,-500.0,0.00030287,5]
[419175885,1775004650609,-200.0,0.00030287,5]
[419175886,1775004650618,-500.0,0.00030287,5]
[419175887,1775004650627,-500.0,0.00030287,5]
[419175888,1775004650636,-200.0,0.00030287,5]
[419175889,1775004650646,-500.0,0.00030287,5]
[419175890,1775004650655,-500.0,0.00030287,5]
[419175891,1775004650664,-200.0,0.00030287,5]
[419175892,1775004650673,-500.0,0.00030287,5]
[419175893,1775004650682,-500.0,0.00030287,5]
[419175894,1775004650691,-200.0,0.00030287,5]
[419175895,1775004650700,-500.0,0.00030287,5]
[419175896,1775004650709,-500.0,0.00030287,5]
[419175897,1775004650718,-200.0,0.00030287,5]
[419175898,1775004650727,-500.0,0.00030287,5]
[419175899,1775004650736,-500.0,0.00030287,5]
[419175900,1775004650746,-500.0,0.00030287,5]
[419175901,1775004650755,-200.0,0.00030287,5]
[419175902,1775004650764,-500.0,0.00030287,5]
[419175903,1775004650773,-500.0,0.00030287,5]
[419175904,1775004650782,-200.0,0.00030287,5]
[419175905,1775004650792,-500.0,0.00030287,5]
[419175906,1775004650803,-160.0,0.00030287,5]
[419175907,1775004650814,-500.0,0.00030287,5]
[419175908,1775004650827,-500.0,0.00030287,5]
[419175909,1775004650837,-500.0,0.00030287,5]
[419175910,1775004650849,-200.0,0.00030287,5]
[419175911,1775004650859,-500.0,0.00030287,5]
[419175912,1775004650869,-500.0,0.00030287,5]
[419175913,1775004650880,-500.0,0.00030287,5]
[419175914,1775004650891,-500.0,0.00030287,5]
[419175915,1775004650901,-200.0,0.00030287,5]
[419175916,1775004650911,-500.0,0.00030287,5]
[419175917,1775004650921,-500.0,0.00030287,5]
[419175918,1775004650931,-500.0,0.00030287,5]
[419175919,1775004650942,-500.0,0.00030287,5]
[419175920,1775004650951,-151.0,0.00030287,5]
[419175921,1775004650961,-200.0,0.00030287,5]
[419175922,1775004650970,-500.0,0.00030287,5]
[419175923,1775004650981,-500.0,0.00030287,5]
[419175924,1775004650991,-500.0,0.00030287,5]
[419175925,1775004651000,-180.75688614,0.00030287,5]
[419175926,1775004651011,-151.0,0.00030287,5]
[419175927,1775004651021,-200.0,0.00030287,5]
[419175928,1775004651030,-500.0,0.00030287,5]
[419175929,1775004651041,-151.0,0.00030287,5]
[419175930,1775004651051,-200.0,0.00030287,5]
[419175931,1775004651060,-500.0,0.00030287,5]
[419175932,1775004651071,-151.0,0.00030287,5]
[419175933,1775004651082,-500.0,0.00030287,5]
[419175934,1775004651092,-151.0,0.00030287,5]
[419175935,1775004651101,-174.61919141,0.00030287,5]
[419175936,1775004651111,-500.0,0.00030287,5]
[419175937,1775004651120,-151.0,0.00030287,5]
[419175938,1775004651131,-500.0,0.00030287,5]
[419175939,1775004651140,-151.0,0.00030287,5]
[419175940,1775004651150,-181.08010149,0.00030287,5]
[419175941,1775004651160,-500.0,0.00030287,5]
[419175942,1775004651169,-151.0,0.00030287,5]
[419175943,1775004651181,-187.78006525,0.00030287,5]
[419175944,1775004651191,-174.61919141,0.00030287,5]
[419175945,1775004651201,-500.0,0.00030287,5]
[419175946,1775004651211,-151.0,0.00030287,5]
[419175947,1775004651221,-291.21544229,0.00030287,5]
[419175948,1775004651231,-181.08010149,0.00030287,5]
[419175949,1775004651240,-151.0,0.00030287,5]
[419175950,1775004651249,-250.0,0.00030287,5]
[419175951,1775004651258,-151.0,0.00030287,5]
[419175952,1775004651267,-187.78006525,0.00030287,5]
[419175953,1775004651276,-151.0,0.00030287,5]
[419175954,1775004651286,-250.0,0.00030287,5]
[419175955,1775004651295,-151.0,0.00030287,5]
[419175956,1775004651304,-194.72792766,0.00030287,5]
[419175957,1775004651314,-151.0,0.00030287,5]
[419175958,1775004651324,-250.0,0.00030287,5]
[419175959,1775004651334,-151.0,0.00030287,5]
[419175960,1775004651343,-201.93286099,0.00030287,5]
[419175961,1775004651352,-151.0,0.00030287,5]
[419175962,1775004651362,-250.0,0.00030287,5]
[419175963,1775004651371,-209.40437684,0.00030287,5]
[419175964,1775004651381,-151.0,0.00030287,5]
[419175965,1775004651390,-250.0,0.00030287,5]
[419175966,1775004651399,-151.0,0.00030287,5]
[419175967,1775004651409,-250.0,0.00030287,5]
[419175968,1775004651418,-217.15233878,0.00030287,5]
[419175969,1775004651427,-151.0,0.00030287,5]
[419175970,1775004651436,-250.0,0.00030287,5]
[419175971,1775004651446,-224.2585905,0.00030287,5]
[419175972,1775004651455,-250.0,0.00030287,5]
[419175973,1775004651465,-250.0,0.00030287,5]
[419175974,1775004651474,-578.20924308,0.00030287,5]
[419175975,1775004651483,-250.0,0.00030287,5]
[419175976,1775004651493,-599.60298507,0.00030287,5]
[419175977,1775004651502,-250.0,0.00030287,5]
[419175978,1775004651511,-621.78829552,0.00030287,5]
[419175979,1775004651520,-250.0,0.00030287,5]
[419175980,1775004651529,-191.04817512,0.00030287,5]
[419175981,1775004651538,-250.0,0.00030287,5]
[419175982,1775004651548,-250.0,0.00030287,5]
[419175983,1775004651557,-250.0,0.00030287,5]
[419175984,1775004651566,-250.0,0.00030287,5]
[419175985,1775004651575,-151.0,0.00030287,5]
[419175986,1775004651584,-151.0,0.00030287,5]
[419175987,1775004651594,-200.0,0.00030287,5]
[419175988,1775004651603,-200.0,0.00030287,5]
[419175989,1775004651612,-279.9045709,0.00030287,5]
[419175990,1775004651622,-290.26104003,0.00030287,5]
[419175991,1775004651631,-200.0,0.00030287,5]
[419175992,1775004651640,-151.0,0.00030287,5]
[419175993,1775004651649,-151.0,0.00030287,5]
[419175994,1775004651659,-743.50770149,0.00030287,5]
[419175995,1775004651668,-151.0,0.00030287,5]
[419175996,1775004651677,-771.01748645,0.00030287,5]
[419175997,1775004651686,-151.0,0.00030287,5]
[419175998,1775004651696,-799.54513345,0.00030287,5]
[419175999,1775004651705,-151.0,0.00030287,5]
[419176000,1775004651715,-829.12830338,0.00030287,5]
[419176001,1775004651724,-174.61919141,0.00030287,5]
[419176002,1775004651734,-151.0,0.00030287,5]
[419176003,1775004651743,-396.05894556,0.00030287,5]
[419176004,1775004651753,-209.40437684,0.00030287,5]
[419176005,1775004651762,-151.0,0.00030287,5]
[419176006,1775004651771,-151.0,0.00030287,5]
[419176007,1775004651780,-151.0,0.00030287,5]
[419176008,1775004651789,-262.90206542,0.00030287,5]
[419176009,1775004651798,-151.0,0.00030287,5]
[419176010,1775004651807,-272.62944185,0.00030287,5]
[419176011,1775004651817,-151.0,0.00030287,5]
[419176012,1775004651826,-282.71673119,0.00030287,5]
[419176013,1775004651835,-151.0,0.00030287,5]
[419176014,1775004651844,-293.17725025,0.00030287,5]
[419176015,1775004651853,-151.0,0.00030287,5]
[419176016,1775004651863,-304.02480851,0.00030287,5]
[419176017,1775004651872,-151.0,0.00030287,5]
[419176018,1775004651881,-315.27372642,0.00030287,5]
[419176019,1775004651890,-151.0,0.00030287,5]
[419176020,1775004651900,-326.9388543,0.00030287,5]
[419176021,1775004651910,-151.0,0.00030287,5]
[419176022,1775004651920,-339.03559191,0.00030287,5]
[419176023,1775004651930,-500.0,0.00030287,5]
[419176024,1775004651941,-500.0,0.00030287,5]
[419176025,1775004651952,-500.0,0.00030287,5]
[419176026,1775004651963,-500.0,0.00030287,5]
[419176027,1775004651972,-500.0,0.00030287,5]
[419176028,1775004651982,-500.0,0.00030288,5]
[419176029,1775004651993,-251.08848679,0.00030288,5]
[419176030,1775004652003,-1000.0,0.00030288,30]
[419176031,1775004652012,-548.0,0.00030288,2]
[419176032,1775004652023,-1012.82,0.00030288,30]
[419176033,1775004652033,-1000.0,0.00030336,2]
[419176034,1775004652043,-227.74950814,0.00030393,2]
[419176035,1775004652052,-150.0,0.0003041,2]
[419176036,1775004652062,-541.58,0.00030411,120]
[419176037,1775004652072,-409.0,0.00030461,2]
[419176038,1775004652081,-152.0,0.00030495,14]
[419176039,1775004652091,-1012.82,0.00030577,30]
[419176040,1775004652100,-409.0,0.00030593,2]
[419176041,1775004652110,-1000.0,0.00030597,120]
[419176042,1775004652120,-150.0,0.000306,3]
[419176043,1775004652129,-251.000001,0.000306,2]
[419176044,1775004652139,-1000.0,0.000306,120]
[419176045,1775004652149,-1000.0,0.000306,120]
[419176046,1775004652160,-485.17761,0.000306,9]
[419176047,1775004652171,-485.17761,0.000306,9]
[419176048,1775004652181,-485.17761,0.000306,9]
[419176049,1775004652191,-485.17761,0.000306,9]
[419176050,1775004652200,-150.0,0.0003061,2]
[419176051,1775004652209,-150.0,0.00030623,2]
[419176052,1775004652219,-1000.0,0.0003067,2]
[419176053,1775004652228,-241785.66038752,0.00030683,2]
[419176054,1775004652238,-200.0,0.00030683,2]
[419176055,1775004652247,-151.0,0.00030683,7]
[419176056,1775004652256,-151.0,0.00030683,7]
[419176057,1775004652267,-200.0,0.00030683,2]
[419176058,1775004652278,-234.50872671,0.00030685,2]
[419176059,1775004652289,-161.0,0.00030741,3]
[419176060,1775004652299,-2808.0,0.00030753,3]
[419176061,1775004652309,-1012.82,0.00030865,30]
[419176062,1775004652319,-1000.0,0.0003087,2]
[419176063,1775004652328,-250.0,0.00030904,18]
[419176064,1775004652338,-233.92702816,0.00030906,2]
[419176065,1775004652347,-266.35650501,0.00030906,2]
[419176066,1775004652357,-485.17762,0.00030906,13]
[419176067,1775004652367,-485.17761,0.00030906,13]
[419176068,1775004652376,-200.0,0.0003099,2]
[419176069,1775004652385,-200.0,0.0003099,2]
[419176070,1775004652394,-200.0,0.00031,11]
[419176071,1775004652403,-329.9270179,0.00031,120]
[419176072,1775004652413,-6869.7164,0.00031,77]
[419176073,1775004652423,-160.0,0.00031,7]
[419176074,1775004652432,-152.0,0.00031032,15]
[419176075,1775004652441,-800.0,0.00031082,21]
[419176076,1775004652451,-1000.0,0.00031136,120]
[419176077,1775004652460,-1012.82,0.00031154,30]
[419176078,1775004652470,-1000.0,0.00031229,120]
[419176079,1775004652479,-1000.0,0.00031284,120]
[419176080,1775004652489,-200.0,0.000313,2]
[419176081,1775004652499,-200.0,0.000313,2]
[419176082,1775004652508,-1200.0,0.00031356,21]
[419176083,1775004652519,-151.0,0.0003143,7]
[419176084,1775004652529,-151.0,0.00031433,7]
[419176085,1775004652541,-1012.82,0.00031442,30]
[419176086,1775004652551,-150.0,0.0003147,2]
[419176087,1775004652561,-1000.0,0.0003147,120]
[419176088,1775004652570,-1000.0,0.0003147,120]
[419176089,1775004652815,-502.0,0.00031473,17]
[419176090,1775004652833,-801.0,0.00031494,2]
[419176091,1775004652842,-300.0,0.0003153,7]
[419176092,1775004652851,-1524.0,0.0003153,7]
[419176093,1775004652861,-1524.0,0.0003153,7]
[419176094,1775004652871,-1524.0,0.0003153,7]
[419176095,1775004652880,-152.0,0.0003153,7]
[419176096,1775004652889,-153.0,0.0003153,7]
[419176097,1775004652898,-1524.0,0.0003153,7]
[419176098,1775004652907,-1524.0,0.0003153,7]
[419176099,1775004652917,-1524.0,0.0003153,7]
[419176100,1775004652926,-1524.0,0.0003153,7]
[419176101,1775004652936,-1524.0,0.0003153,7]
[419176102,1775004652946,-1524.0,0.0003153,7]
[419176103,1775004652955,-1524.0,0.0003153,7]
[419176104,1775004652965,-1524.0,0.0003153,7]
[419176105,1775004652974,-1524.0,0.0003153,7]
[419176106,1775004652983,-1524.0,0.0003153,7]
[419176107,1775004652993,-1524.0,0.0003153,7]
[419176108,1775004653002,-1524.0,0.0003153,7]
[419176109,1775004653012,-1524.0,0.0003153,7]
[419176110,1775004653022,-1524.0,0.0003153,7]
[419176111,1775004653031,-1524.0,0.0003153,7]
[419176112,1775004653041,-1524.0,0.0003153,7]
[419176113,1775004653050,-1524.0,0.0003153,7]
[419176114,1775004653060,-1524.0,0.0003153,7]
[419176115,1775004653070,-1524.0,0.0003153,7]
[419176116,1775004653080,-1524.0,0.0003153,7]
[419176117,1775004653089,-1524.0,0.0003153,7]
[419176118,1775004653099,-1524.0,0.0003153,7]
[419176119,1775004653109,-1524.0,0.0003153,7]
[419176120,1775004653119,-1214.76979848,0.0003153,7]
[419176121,1775004653130,-1524.0,0.0003153,7]
[419176122,1775004653139,-152.0,0.0003153,7]
[419176123,1775004653149,-1524.0,0.0003153,7]
[419176124,1775004653158,-152.0,0.0003153,7]
[419176125,1775004653168,-1524.0,0.0003153,7]
[419176126,1775004653177,-152.0,0.0003153,7]
[419176127,1775004653187,-1524.0,0.0003153,7]
[419176128,1775004653196,-152.0,0.0003153,7]
[419176129,1775004653206,-1524.0,0.0003153,7]
[419176130,1775004653215,-223.45367885,0.0003153,7]
[419176131,1775004653224,-1524.0,0.0003153,7]
[419176132,1775004653234,-1524.0,0.0003153,7]
[419176133,1775004653243,-1524.0,0.0003153,7]
[419176134,1775004653253,-1524.0,0.0003153,7]
[419176135,1775004653263,-1524.0,0.0003153,7]
[419176136,1775004653273,-1524.0,0.0003153,7]
[419176137,1775004653284,-1524.0,0.0003153,7]
[419176138,1775004653293,-1524.0,0.0003153,7]
[419176139,1775004653304,-1524.0,0.0003153,7]
[419176140,1775004653314,-1524.0,0.0003153,7]
[419176141,1775004653324,-1508.0,0.0003153,7]
[419176142,1775004653334,-1000.0,0.0003153,120]
[419176143,1775004653344,-152.0,0.00031569,16]
[419176144,1775004653356,-214.2,0.000316,5]
[419176145,1775004653366,-200.0,0.00031613,2]
[419176146,1775004653376,-200.0,0.00031613,2]
[419176147,1775004653386,-2808.0,0.00031647,3]
[419176148,1775004653396,-1450.0,0.0003165,2]
[419176149,1775004653406,-1450.0,0.0003165,2]
[419176150,1775004653416,-1422.0,0.0003165,2]
[419176151,1775004653428,-1012.82,0.00031731,30]
[419176152,1775004653439,-500.0,0.00031753,2]
[419176153,1775004653450,-1000.0,0.00031893,120]
[419176154,1775004653460,-800.0,0.00031904,21]
[419176155,1775004653471,-200.0,0.00031929,2]
[419176156,1775004653480,-200.0,0.00031929,2]
[419176157,1775004653490,-267.8114359,0.00032,120]
[419176158,1775004653499,-451.8991094,0.00032,120]
[419176159,1775004653509,-532.07455327,0.00032,120]
[419176160,1775004653519,-2188.74002474,0.00032,120]
[419176161,1775004653529,-402.76811213,0.00032,120]
[419176162,1775004653538,-615.49489718,0.00032,120]
[419176163,1775004653547,-183.55573245,0.00032,120]
[419176164,1775004653557,-179.48093759,0.00032,120]
[419176165,1775004653567,-221.44526151,0.00032,120]
[419176166,1775004653577,-200.0,0.00032,12]
[419176167,1775004653587,-500.0,0.00032,7]
[419176168,1775004653598,-500.0,0.00032,7]
[419176169,1775004653609,-500.0,0.00032,7]
[419176170,1775004653618,-500.0,0.00032,7]
[419176171,1775004653627,-500.0,0.00032,7]
[419176172,1775004653638,-500.0,0.00032,7]
[419176173,1775004653649,-500.0,0.00032,7]
[419176174,1775004653658,-500.0,0.00032,7]
[419176175,1775004653669,-500.0,0.00032,7]
[419176176,1775004653679,-500.0,0.00032,7]
[419176177,1775004653689,-500.0,0.00032,7]
[419176178,1775004653698,-500.0,0.00032,7]
[419176179,1775004653708,-500.0,0.00032,7]
[419176180,1775004653718,-500.0,0.00032,7]
[419176181,1775004653727,-500.0,0.00032,7]
[419176182,1775004653736,-500.0,0.00032,7]
[419176183,1775004653745,-500.0,0.00032,7]
[419176184,1775004653754,-500.0,0.00032,7]
[419176185,1775004653763,-500.0,0.00032,7]
[419176186,1775004653773,-500.0,0.00032,7]
[419176187,1775004653782,-500.0,0.00032,7]
[419176188,1775004653791,-500.0,0.00032,7]
[419176189,1775004653800,-500.0,0.00032,7]
[419176190,1775004653810,-500.0,0.00032,7]
[419176191,1775004653819,-500.0,0.00032,7]
[419176192,1775004653828,-500.0,0.00032,7]
[419176193,1775004653837,-500.0,0.00032,7]
[419176194,1775004653847,-500.0,0.00032,7]
[419176195,1775004653856,-500.0,0.00032,7]
[419176196,1775004653866,-500.0,0.00032,7]
[419176197,1775004653875,-500.0,0.00032,7]
[419176198,1775004653884,-500.0,0.00032,7]
[419176199,1775004653893,-500.0,0.00032,7]
[419176200,1775004653903,-500.0,0.00032,7]
[419176201,1775004653912,-500.0,0.00032,7]
[419176202,1775004653921,-500.0,0.00032,7]
[419176203,1775004653930,-500.0,0.00032,7]
[419176204,1775004653939,-500.0,0.00032,7]
[419176205,1775004653948,-500.0,0.00032,7]
[419176206,1775004653957,-500.0,0.00032,7]
[419176207,1775004653967,-500.0,0.00032,7]
[419176208,1775004653976,-500.0,0.00032,7]
[419176209,1775004653985,-500.0,0.00032,7]
[419176210,1775004653994,-500.0,0.00032,7]
[419176211,1775004654003,-500.0,0.00032,7]
[419176212,1775004654012,-500.0,0.00032,7]
[419176213,1775004654021,-500.0,0.00032,7]
[419176214,1775004654031,-500.0,0.00032,7]
[419176215,1775004654040,-495.25,0.00032,7]
[419176216,1775004654050,-500.0,0.00032,7]
[419176217,1775004654059,-500.0,0.00032,7]
[419176218,1775004654069,-500.0,0.00032,7]
[419176219,1775004654079,-500.0,0.00032,7]
[419176220,1775004654089,-500.0,0.00032,7]
[419176221,1775004654099,-500.0,0.00032,7]
[419176222,1775004654108,-500.0,0.00032,7]
[419176223,1775004654117,-500.0,0.00032,7]
[419176224,1775004654127,-500.0,0.00032,7]
[419176225,1775004654136,-500.0,0.00032,7]
[419176226,1775004654148,-500.0,0.00032,7]
[419176227,1775004654157,-500.0,0.00032,7]
[419176228,1775004654166,-500.0,0.00032,7]
[419176229,1775004654176,-500.0,0.00032,7]
[419176230,1775004654186,-500.0,0.00032,7]
[419176231,1775004654195,-500.0,0.00032,7]
[419176232,1775004654205,-500.0,0.00032,7]
[419176233,1775004654214,-500.0,0.00032,7]
[419176234,1775004654224,-500.0,0.00032,7]
[419176235,1775004654233,-500.0,0.00032,7]
[419176236,1775004654243,-567.71,0.00032,7]
[419176237,1775004654252,-1000.0,0.00032,120]
[419176238,1775004654261,-1000.0,0.00032,120]
[419176239,1775004654271,-830.49902308,0.0003201,2]
[419176240,1775004654281,-1450.0,0.00032018,2]
[419176241,1775004654290,-1450.0,0.00032018,2]
[419176242,1775004654299,-1421.0,0.00032018,2]
[419176243,1775004654309,-1012.82,0.00032019,120]
[419176244,1775004654319,-1000.0,0.00032045,120]
[419176245,1775004654328,-152.0,0.00032106,17]
[419176246,1775004654338,-687.572,0.00032149,2]
[419176247,1775004654348,-1225.039,0.00032149,2]
[419176248,1775004654358,-1052.0,0.00032149,2]
[419176249,1775004654368,-1200.0,0.00032178,21]
[419176250,1775004654377,-1000.0,0.00032273,120]
[419176251,1775004654387,-2808.0,0.00032297,11]
[419176252,1775004654396,-1012.82,0.00032308,120]
[419176253,1775004654405,-392.43448724,0.00032329,7]
[419176254,1775004654414,-1000.0,0.00032388,120]
[419176255,1775004654423,-1000.0,0.00032388,120]
[419176256,1775004654432,-1000.0,0.000324,120]
[419176257,1775004654442,-8864.6579,0.000324,82]
[419176258,1775004654451,-1000.0,0.0003247,120]
[419176259,1775004654462,-1000.0,0.00032497,120]
[419176260,1775004654473,-1000.0,0.000325,120]
[419176261,1775004654484,-1000.0,0.000325,120]
[419176262,1775004654496,-1000.0,0.00032501,120]
[419176263,1775004654507,-1012.82,0.00032596,120]
[419176264,1775004654518,-150.0,0.000326,30]
[419176265,1775004654528,-500.0,0.000326,30]
[419176266,1775004654538,-150.0,0.000326,30]
[419176267,1775004654548,-150.0,0.000326,30]
[419176268,1775004654559,-500.0,0.000326,30]
[419176269,1775004654569,-150.0,0.000326,30]
[419176270,1775004654578,-500.0,0.000326,30]
[419176271,1775004654588,-249.69232062,0.000326,30]
[419176272,1775004654597,-500.0,0.000326,30]
[419176273,1775004654608,-500.0,0.000326,30]
[419176274,1775004654616,-500.0,0.000326,30]
[419176275,1775004654626,-500.0,0.000326,30]
[419176276,1775004654635,-500.0,0.000326,30]
[419176277,1775004654644,-500.0,0.000326,30]
[419176278,1775004654656,-586.699593,0.000326,30]
[419176279,1775004654667,-699.0,0.000326,30]
[419176280,1775004654678,-699.0,0.000326,30]
[419176281,1775004654688,-699.0,0.000326,30]
[419176282,1775004654698,-500.0,0.000326,30]
[419176283,1775004654710,-699.0,0.000326,30]
[419176284,1775004654719,-500.0,0.000326,30]
[419176285,1775004654729,-699.0,0.000326,30]
[419176286,1775004654738,-500.0,0.000326,30]
[419176287,1775004654747,-699.0,0.000326,30]
[419176288,1775004654756,-500.0,0.000326,30]
[419176289,1775004654766,-699.0,0.000326,30]
[419176290,1775004654775,-500.0,0.000326,30]
[419176291,1775004654784,-699.0,0.000326,30]
[419176292,1775004654793,-500.0,0.000326,30]
[419176293,1775004654804,-500.0,0.000326,30]
[419176294,1775004654814,-699.0,0.000326,30]
[419176295,1775004654824,-500.0,0.000326,30]
[419176296,1775004654834,-699.0,0.000326,30]
[419176298,1775004654843,-526.20728461,0.000326,30]
[419176299,1775004654853,-699.0,0.000326,30]
[419176300,1775004654862,-699.0,0.000326,30]
[419176301,1775004654871,-699.0,0.000326,30]
[419176302,1775004654881,-699.0,0.000326,30]
[419176303,1775004654891,-699.0,0.000326,30]
[419176304,1775004654901,-699.0,0.000326,30]
[419176305,1775004654911,-699.0,0.000326,30]
[419176306,1775004654922,-699.0,0.000326,30]
[419176307,1775004654932,-699.0,0.000326,30]
[419176308,1775004654942,-500.0,0.000326,30]
[419176309,1775004654951,-500.0,0.000326,30]
[419176310,1775004654961,-220.20838864,0.000326,30]
[419176311,1775004654970,-699.0,0.000326,30]
[419176312,1775004654980,-500.0,0.000326,30]
[419176313,1775004654989,-500.0,0.000326,30]
[419176314,1775004655000,-233.3949923,0.000326,30]
[419176315,1775004655009,-500.0,0.000326,30]
[419176316,1775004655019,-500.0,0.000326,30]
[419176317,1775004655029,-500.0,0.000326,30]
[419176318,1775004655038,-699.0,0.000326,30]
[419176319,1775004655047,-500.0,0.000326,30]
[419176320,1775004655057,-500.0,0.000326,30]
[419176321,1775004655066,-359.68189456,0.000326,30]
[419176322,1775004655077,-500.0,0.000326,30]
[419176323,1775004655087,-500.0,0.000326,30]
[419176324,1775004655097,-500.0,0.000326,30]
[419176325,1775004655109,-500.0,0.000326,30]
[419176326,1775004655118,-500.0,0.000326,30]
[419176327,1775004655128,-699.0,0.000326,30]